Workbook

Sheet Marketer Visits
A1: MARKETER VISITS
B2: Stress Balls | C2: Pens | D2: CEG box=18 | E2: Catalogs | F2: HS/MS Credit Brochures | G2: Notepads | H2: "What's New" Postcards | I2: NCAA Postcards | J2: Free Courses Postcard | K2: "Get More Materials" Postcard | L2: District Guides | M2: Mice | N2: Umbrellas | O2: Golf Balls | P2: CD | Q2: HS Posters | R2: Shipping Costs
A4: TOTALS | B4: =SUM(B5-B6) -> 90 | C4: =SUM(C5-C6) -> 90 | D4: 150 | E4: 0 | F4: 450 | G4: 0 | H4: 60 | I4: 0 | J4: 300 | K4: 0 | L4: 0 | M4: 0 | N4: 0 | O4: 0 | P4: 0 | Q4: 0 | R4: =SUM(R5+R6) -> 3
A5: Requested Totals | B5: =SUM(B9+B43+B95+B129+B168+B200) -> 90 | C5: 90 | D5: 150 | E5: 0 | F5: 450 | G5: 0 | H5: 60 | I5: 0 | J5: 300 | K5: 0 | L5: 0 | M5: 0 | N5: 0 | O5: 0 | P5: 0 | Q5: 0 | R5: 1
A6: Returned Totals | B6: =SUM(B10+B44+B96+B130+B169+B201) -> 0 | C6: 0 | D6: 0 | E6: 0 | F6: 0 | G6: 0 | H6: 0 | I6: 0 | J6: 0 | K6: 0 | L6: 0 | M6: 0 | N6: 0 | O6: 0 | P6: 0 | Q6: 0 | R6: 2
A7: 08-09 Totals
A8: Jim Rawson
A9: Requested Totals | B9: =SUM(B12:B33) -> 0 | C9: 0 | D9: 0 | E9: 0 | F9: 0 | G9: 0 | H9: 0 | I9: 0 | J9: 0 | K9: 0 | L9: 0 | M9: 0 | N9: 0 | O9: 0 | P9: 0 | Q9: 0 | R9: 1 | S9: =SUM(R9+R10) -> 3
A10: Returned Totals | B10: =SUM(B35:B41) -> 0 | C10: =SUM(C35:C41) -> 0 | D10: 0 | E10: =SUM(E35:E41) -> 0 | F10: 0 | G10: 0 | H10: 0 | I10: 0 | J10: 0 | K10: 0 | L10: 0 | M10: 0 | N10: 0 | O10: 0 | P10: 0 | Q10: 0 | R10: 2
A11: 08-09 Totals
R12: 1
A34: RETURNS
R35: 2
A42: John Kent
A43: Requested Totals | B43: =SUM(B46:B80) -> 90 | C43: =SUM(C46:C80) -> 90 | D43: 150 | E43: 0 | F43: 450 | G43: 0 | H43: 60 | I43: 0 | J43: 300 | K43: 0 | L43: 0 | M43: 0 | N43: 0 | O43: 0 | P43: 0 | Q43: 0 | R43: 0 | S43: =SUM(R43+R44) -> 0
A44: Returned Totals | B44: =SUM(B82:B93) -> 0 | C44: =SUM(C82:C93) -> 0 | D44: 0 | E44: 0 | F44: 0 | G44: 0 | H44: 0 | I44: 0 | J44: 0 | K44: 0 | L44: 0 | M44: 0 | N44: 0 | O44: 0 | P44: 0 | Q44: 0 | R44: 0
A45: 08-09 Totals
A46: John Kent | B46: 30 | C46: 30 | D46: 50 | E46: 0 | F46: 150 | G46: 0 | H46: 20 | J46: 100 | M46: 0 | N46: 0 | O46: 0 | P46: 0
A47: John Kent | B47: 30 | C47: 30 | D47: 50 | E47: 0 | F47: 150 | G47: 0 | H47: 20 | J47: 100 | M47: 0 | N47: 0 | O47: 0 | P47: 0
A48: John Kent | B48: 30 | C48: 30 | D48: 50 | E48: 0 | F48: 150 | G48: 0 | H48: 20 | J48: 100 | M48: 0 | N48: 0 | O48: 0 | P48: 0
A81: RETURNS
A94: John Bushman
A95: Requested Totals | B95: =SUM(B98:B119) -> 0 | C95: =SUM(C98:C119) -> 0 | D95: 0 | E95: 0 | F95: 0 | G95: 0 | H95: 0 | I95: 0 | J95: 0 | K95: 0 | L95: 0 | M95: 0 | N95: 0 | O95: 0 | P95: 0 | Q95: 0 | R95: 0 | S95: =SUM(R95+R96) -> 0
A96: Returned Totals | B96: =SUM(B121:B127) -> 0 | C96: =SUM(C121:C127) -> 0 | D96: 0 | E96: 0 | F96: 0 | G96: 0 | H96: 0 | I96: 0 | J96: 0 | K96: 0 | L96: 0 | M96: 0 | N96: 0 | O96: 0 | P96: 0 | Q96: 0 | R96: 0
A97: 08-09 Totals
A120: RETURNS
A128: Jedd Maylett
A129: Requested Totals | B129: =SUM(B132:B152) -> 0 | C129: =SUM(C132:C152) -> 0 | D129: 0 | E129: 0 | F129: 0 | G129: 0 | H129: 0 | I129: 0 | J129: 0 | K129: 0 | L129: 0 | M129: 0 | N129: 0 | O129: 0 | P129: 0 | Q129: 0 | R129: 0 | S129: =SUM(R129+R130) -> 0
A130: Returned Totals | B130: =SUM(B154:B166) -> 0 | C130: =SUM(C154:C166) -> 0 | D130: 0 | E130: 0 | F130: 0 | G130: 0 | H130: 0 | I130: 0 | J130: 0 | K130: 0 | L130: 0 | M130: 0 | N130: 0 | O130: 0 | P130: 0 | Q130: 0 | R130: 0
A131: 08-09 Totals
A153: RETURNS
A167: Nathan Hallows
A168: Requested Totals | B168: =SUM(B171:B190) -> 0 | C168: =SUM(C171:C190) -> 0 | D168: 0 | E168: 0 | F168: 0 | G168: 0 | H168: 0 | I168: 0 | J168: 0 | K168: 0 | L168: 0 | M168: 0 | N168: 0 | O168: 0 | P168: 0 | Q168: 0 | R168: 0 | S168: =SUM(R168+R169) -> 0
A169: Returned Totals | B169: =SUM(B192:B198) -> 0 | C169: =SUM(C192:C198) -> 0 | D169: 0 | E169: 0 | F169: 0 | G169: 0 | H169: 0 | I169: 0 | J169: 0 | K169: 0 | L169: 0 | M169: 0 | N169: 0 | O169: 0 | P169: 0 | Q169: 0 | R169: 0
A170: 08-09 Totals
A191: RETURNS
A199: Other
A200: Requested Totals | B200: =SUM(B203:B216) -> 0 | C200: =SUM(C203:C216) -> 0 | D200: 0 | E200: 0 | F200: 0 | G200: 0 | H200: 0 | I200: 0 | J200: 0 | K200: 0 | L200: 0 | M200: 0 | N200: 0 | O200: 0 | P200: 0 | Q200: 0 | R200: =SUM(R203:R216) -> 0 | S200: =SUM(R200+R201) -> 0
A201: Returned Totals | B201: =SUM(B218:B224) -> 0 | C201: =SUM(C218:C224) -> 0 | D201: 0 | E201: 0 | F201: 0 | G201: 0 | H201: 0 | I201: 0 | J201: 0 | K201: 0 | L201: 0 | M201: 0 | N201: 0 | O201: 0 | P201: 0 | Q201: 0 | R201: 0
A202: 08-09 Totals
A217: RETURNS

Sheet Marketer Mailings
A1: MARKETER MAILINGS
B2: Stress Balls | C2: Pens | D2: CEG box=18 | E2: Catalogs | F2: HS/MS Credit Brochure | G2: Notepads | H2: "What's New" Postcard | I2: NCAA Postcard | J2: Free Courses Postcard | K2: "Get More Materials" Postcard | L2: District Guides | M2: Mice | N2: Umbrellas | O2: Golf Balls | P2: CD | Q2: HS Posters | R2: Shipping Costs
A4: TOTALS | B4: =SUM(B5-B6) -> 0 | C4: =SUM(C5-C6) -> 20 | D4: 4 | E4: 0 | F4: 80 | G4: 0 | H4: 0 | I4: 0 | J4: 16 | K4: 0 | L4: 0 | M4: 0 | N4: 92 | O4: 0 | P4: 0 | Q4: 0 | R4: =SUM(R5+R6) -> 9
A5: Requested Totals | B5: =SUM(B9+B43+B80+B113+B139+B178) -> 0 | C5: =SUM(C9+C43+C80+C113+C139+C178) -> 20 | D5: 4 | E5: 0 | F5: 80 | G5: 0 | H5: 0 | I5: 0 | J5: 16 | K5: 0 | L5: 0 | M5: 0 | N5: 92 | O5: 0 | P5: 0 | Q5: 0 | R5: =SUM(R9+R43+R80+R113+R139+R178) -> 4
A6: Returned Totals | B6: =SUM(B10+B44+B81+B114+B140+B179) -> 0 | C6: =SUM(C10+C44+C81+C114+C140+C179) -> 0 | D6: 0 | E6: 0 | F6: 0 | G6: 0 | H6: 0 | I6: 0 | J6: 0 | K6: 0 | L6: 0 | M6: 0 | N6: 0 | O6: 0 | P6: 0 | Q6: 0 | R6: =SUM(R10+R44+R81+R114+R140+R179) -> 5
A7: 09-10 Totals
A8: Jim Rawson Jenn Watson
A9: TOTAL | B9: =SUM(B12:B34) -> 0 | C9: =SUM(C12:C34) -> 0 | D9: 0 | E9: 0 | F9: 0 | G9: 0 | H9: 0 | I9: 0 | J9: 0 | K9: 0 | L9: 0 | M9: 0 | N9: 0 | O9: 0 | P9: 0 | Q9: 0 | R9: 4 | S9: =SUM(R9+R10) -> 9
A10: Returned Totals | B10: =SUM(B36:B41) -> 0 | C10: =SUM(C36:C41) -> 0 | D10: 0 | E10: 0 | F10: 0 | G10: 0 | H10: 0 | I10: 0 | J10: 0 | K10: 0 | L10: 0 | M10: 0 | N10: 0 | O10: 0 | P10: 0 | Q10: 0 | R10: =SUM(R36:R41) -> 5
A11: 08-09 Totals
R12: 4
A35: RETURNS
R36: 5
A42: John Kent Anders Conk
A43: TOTAL | B43: =SUM(B46:B71) -> 0 | C43: =SUM(C46:C71) -> 0 | D43: 0 | E43: 0 | F43: 0 | G43: 0 | H43: 0 | I43: 0 | J43: 0 | K43: 0 | L43: 0 | M43: 0 | N43: 0 | O43: 0 | P43: 0 | Q43: 0 | R43: 0 | S43: =SUM(R43+R44) -> 0
A44: Returned Totals | B44: =SUM(B73:B78) -> 0 | C44: =SUM(C73:C78) -> 0 | D44: 0 | E44: 0 | F44: 0 | G44: 0 | H44: 0 | I44: 0 | J44: 0 | K44: 0 | L44: 0 | M44: 0 | N44: 0 | O44: 0 | P44: 0 | Q44: 0 | R44: 0
A45: 08-09 Totals
A72: RETURNS
A79: John Bushman
A80: TOTAL | B80: =SUM(B83:B104) -> 0 | C80: =SUM(C83:C104) -> 15 | D80: 3 | E80: 0 | F80: 60 | G80: 0 | H80: 0 | I80: 0 | J80: 12 | K80: 0 | L80: 0 | M80: 0 | N80: 69 | O80: 0 | P80: 0 | Q80: 0 | R80: 0 | S80: =SUM(R80+R81) -> 0
A81: Returned Totals | B81: =SUM(B106:B111) -> 0 | C81: =SUM(C106:C111) -> 0 | D81: 0 | E81: 0 | F81: 0 | G81: 0 | H81: 0 | I81: 0 | J81: 0 | K81: 0 | L81: 0 | M81: 0 | N81: 0 | O81: 0 | P81: 0 | Q81: 0 | R81: 0
A82: 08-09 Totals
A83: John Bushman | B83: 0 | C83: 5 | D83: 1 | E83: 0 | F83: 20 | G83: 0 | H83: 0 | J83: 4 | M83: 0 | N83: 23 | O83: 0 | P83: 0
A84: John Bushman | B84: 0 | C84: 5 | D84: 1 | E84: 0 | F84: 20 | G84: 0 | H84: 0 | J84: 4 | M84: 0 | N84: 23 | O84: 0 | P84: 0
A85: John Bushman | B85: 0 | C85: 5 | D85: 1 | E85: 0 | F85: 20 | G85: 0 | H85: 0 | J85: 4 | M85: 0 | N85: 23 | O85: 0 | P85: 0
A105: RETURNS
A112: Jedd Maylett Angela Rowberry
A113: TOTAL | B113: =SUM(B116:B130) -> 0 | C113: =SUM(C116:C130) -> 5 | D113: 1 | E113: 0 | F113: 20 | G113: 0 | H113: 0 | I113: 0 | J113: 4 | K113: 0 | L113: 0 | M113: 0 | N113: 23 | O113: 0 | P113: 0 | Q113: 0 | R113: 0 | S113: =SUM(R113+R114) -> 0
A114: Returned Totals | B114: =SUM(B132:B137) -> 0 | C114: =SUM(C132:C137) -> 0 | D114: 0 | E114: 0 | F114: 0 | G114: 0 | H114: 0 | I114: 0 | J114: 0 | K114: 0 | L114: 0 | M114: 0 | N114: 0 | O114: 0 | P114: 0 | Q114: 0 | R114: 0
A115: 08-09 Totals
B116: 0 | C116: 5 | D116: 1 | E116: 0 | F116: 20 | G116: 0 | H116: 0 | J116: 4 | M116: 0 | N116: 23 | O116: 0 | P116: 0
A131: RETURNS
A138: Nathan Hallows Nichole Baer
A139: TOTAL | B139: =SUM(B142:B169) -> 0 | C139: 0 | D139: 0 | E139: 0 | F139: 0 | G139: 0 | H139: 0 | I139: 0 | J139: 0 | K139: 0 | L139: 0 | M139: 0 | N139: 0 | O139: 0 | P139: 0 | Q139: 0 | R139: 0 | S139: =SUM(R139+R140) -> 0
A140: Returned Totals | B140: =SUM(B171:B176) -> 0 | C140: =SUM(C171:C176) -> 0 | D140: 0 | E140: 0 | F140: 0 | G140: 0 | H140: 0 | I140: 0 | J140: 0 | K140: 0 | L140: 0 | M140: 0 | N140: 0 | O140: 0 | P140: 0 | Q140: 0 | R140: 0
A141: 08-09 Totals
A170: RETURNS
A177: Other
A178: TOTAL | B178: =SUM(B181:B209) -> 0 | C178: 0 | D178: 0 | E178: 0 | F178: 0 | G178: 0 | H178: 0 | I178: 0 | J178: 0 | K178: 0 | L178: 0 | M178: 0 | N178: 0 | O178: 0 | P178: 0 | Q178: 0 | R178: 0 | S178: =SUM(R178+R179) -> 0
A179: Returned Totals | B179: =SUM(B211:B217) -> 0 | C179: =SUM(C211:C217) -> 0 | D179: 0 | E179: 0 | F179: 0 | G179: 0 | H179: 0 | I179: 0 | J179: 0 | K179: 0 | L179: 0 | M179: 0 | N179: 0 | O179: 0 | P179: 0 | Q179: 0 | R179: 0
A180: 08-09 Totals
A210: RETURNS

Sheet Field Reps
A1: FIELD REPS
B2: Stress Balls | C2: Pens | D2: CEG box=18 | E2: Catalogs | F2: HS/MS Credit Brochure | G2: Notepads | H2: "What's New" Postcard | I2: NCAA Postcard | J2: Free Courses Postcard | K2: "Get More Materials" Postcard | L2: District Guides | M2: Mice | N2: Umbrellas | O2: Golf Balls | P2: CD | Q2: HS Posters | R2: Shipping Costs
A4: TOTALS | B4: =SUM(B5-B6) -> 1500 | C4: =SUM(C5-C6) -> 2000 | D4: 800 | E4: 200 | F4: 2000 | G4: 1500 | H4: 1000 | I4: 0 | J4: 1000 | K4: 0 | L4: 0 | M4: 300 | N4: 10 | O4: 30 | P4: 150 | Q4: 0 | R4: =SUM(R5+R6) -> 15
A5: Requested Totals | B5: =SUM(B8:B152) -> 1500 | C5: 2000 | D5: 800 | E5: 200 | F5: 2000 | G5: 1500 | H5: 1000 | I5: 0 | J5: 1000 | K5: 0 | L5: 0 | M5: 300 | N5: 10 | O5: 30 | P5: 150 | Q5: 0 | R5: 7
A6: Returned Totals | B6: =SUM(B154:B159) -> 0 | C6: =SUM(C154:C159) -> 0 | D6: 0 | E6: 0 | F6: 0 | G6: 0 | H6: 0 | I6: 0 | J6: 0 | K6: 0 | L6: 0 | M6: 0 | N6: 0 | O6: 0 | P6: 0 | Q6: 0 | R6: 8
A7: 08-09 Totals
A8: Jim Rawson | B8: 150 | C8: 200 | D8: 80 | E8: 20 | F8: 200 | G8: 150 | H8: 100 | J8: 100 | M8: 30 | N8: 1 | O8: 3 | P8: 15 | R8: 7
A9: Jim Rawson | B9: 150 | C9: 200 | D9: 80 | E9: 20 | F9: 200 | G9: 150 | H9: 100 | J9: 100 | M9: 30 | N9: 1 | O9: 3 | P9: 15
A10: Jim Rawson | B10: 150 | C10: 200 | D10: 80 | E10: 20 | F10: 200 | G10: 150 | H10: 100 | J10: 100 | M10: 30 | N10: 1 | O10: 3 | P10: 15
A11: Jim Rawson | B11: 150 | C11: 200 | D11: 80 | E11: 20 | F11: 200 | G11: 150 | H11: 100 | J11: 100 | M11: 30 | N11: 1 | O11: 3 | P11: 15
A12: Jim Rawson | B12: 150 | C12: 200 | D12: 80 | E12: 20 | F12: 200 | G12: 150 | H12: 100 | J12: 100 | M12: 30 | N12: 1 | O12: 3 | P12: 15
A13: Jim Rawson | B13: 150 | C13: 200 | D13: 80 | E13: 20 | F13: 200 | G13: 150 | H13: 100 | J13: 100 | M13: 30 | N13: 1 | O13: 3 | P13: 15
A14: Jim Rawson | B14: 150 | C14: 200 | D14: 80 | E14: 20 | F14: 200 | G14: 150 | H14: 100 | J14: 100 | M14: 30 | N14: 1 | O14: 3 | P14: 15
A15: Jim Rawson | B15: 150 | C15: 200 | D15: 80 | E15: 20 | F15: 200 | G15: 150 | H15: 100 | J15: 100 | M15: 30 | N15: 1 | O15: 3 | P15: 15
A16: Jim Rawson | B16: 150 | C16: 200 | D16: 80 | E16: 20 | F16: 200 | G16: 150 | H16: 100 | J16: 100 | M16: 30 | N16: 1 | O16: 3 | P16: 15
A17: Jim Rawson | B17: 150 | C17: 200 | D17: 80 | E17: 20 | F17: 200 | G17: 150 | H17: 100 | J17: 100 | M17: 30 | N17: 1 | O17: 3 | P17: 15
A153: RETURNS
R154: 8

Sheet Conferences
A1: CONFERENCES
B2: Stress Balls | C2: Pens | D2: CEG box=18 | E2: Catalogs | F2: HS/MS Credit Brochure | G2: Notepads | H2: "What's New" Postcard | I2: NCAA Postcard | J2: Free Courses Postcard | K2: "Get More Materials" Postcard | L2: District Guides | M2: Mice | N2: Umbrellas | O2: Golf Balls | P2: CD | Q2: HS Posters | R2: Shipping Costs
A4: TOTAL USED | B4: =SUM(B5-B6) -> 0 | C4: =SUM(C5-C6) -> 0 | D4: 0 | E4: 0 | F4: 0 | G4: 0 | H4: 0 | I4: 0 | J4: 0 | K4: 0 | L4: 0 | M4: 0 | N4: 0 | O4: 0 | P4: 0 | Q4: 0 | R4: =SUM(R5+R6) -> 0
A5: Requested Totals | B5: =SUM(B9+B11+B13+B15+B17+B19+B21+B23+B25+B27+B29+B31+B33+B35+B37+B39+B41+B43+B45+B47+B49+B51+B53+B55+B57+B59+B61+B63+B65+B67+B69+B71+B73+B75+B77+B79+B81+B83+B85+B87+B89+B91+B93+B95+B97+B99+B101+B103+B105+B107+B109+B111+B113+B115+B117+B119+B121+B123+B125+B127+B129+B131+B133+B135+B137+B139+B141+B143+B145+B147+B149+B151+B153+B155+B157+B159+B161+B163+B165+B167+B169+B171+B173+B175+B177+B179+B181+B183+B185+B187+B189) -> 0 | C5: =SUM(C9+C11+C13+C15+C17+C19+C21+C23+C25+C27+C29+C31+C33+C35+C37+C39+C41+C43+C45+C47+C49+C51+C53+C55+C57+C59+C61+C63+C65+C67+C69+C71+C73+C75+C77+C79+C81+C83+C85+C87+C89+C91+C93+C95+C97+C99+C101+C103+C105+C107+C109+C111+C113+C115+C117+C119+C121+C123+C125+C127+C129+C131+C133+C135+C137+C139+C141+C143+C145+C147+C149+C151+C153+C155+C157+C159+C161+C163+C165+C167+C169+C171+C173+C175+C177+C179+C181+C183+C185+C187+C189) -> 0 | D5: 0 | E5: 0 | F5: 0 | G5: 0 | H5: 0 | I5: 0 | J5: 0 | K5: 0 | L5: 0 | M5: 0 | N5: 0 | O5: 0 | P5: 0 | Q5: 0 | R5: 0
A6: Returned Totals | B6: =SUM(B10+B12+B14+B16+B18+B20+B22+B24+B26+B28+B30+B32+B34+B36+B38+B40+B42+B44+B46+B48+B50+B52+B54+B56+B58+B60+B62+B64+B66+B68+B70+B72+B74+B76+B78+B80+B82+B84+B86+B88+B90+B92+B94+B96+B98+B100+B102+B104+B106+B108+B110+B112+B114+B116+B118+B120+B122+B124+B126+B128+B130+B132+B134+B136+B138+B140+B142+B144+B146+B148+B150+B152+B154+B156+B158+B160+B162+B164+B166+B168+B170+B172+B174+B176+B178+B180+B182+B184+B186+B188+B190) -> 0 | C6: =SUM(C10+C12+C14+C16+C18+C20+C22+C24+C26+C28+C30+C32+C34+C36+C38+C40+C42+C44+C46+C48+C50+C52+C54+C56+C58+C60+C62+C64+C66+C68+C70+C72+C74+C76+C78+C80+C82+C84+C86+C88+C90+C92+C94+C96+C98+C100+C102+C104+C106+C108+C110+C112+C114+C116+C118+C120+C122+C124+C126+C128+C130+C132+C134+C136+C138+C140+C142+C144+C146+C148+C150+C152+C154+C156+C158+C160+C162+C164+C166+C168+C170+C172+C174+C176+C178+C180+C182+C184+C186+C188+C190) -> 0 | D6: 0 | E6: 0 | F6: 0 | G6: 0 | H6: 0 | I6: 0 | J6: 0 | K6: 0 | L6: 0 | M6: 0 | N6: 0 | O6: 0 | P6: 0 | Q6: 0 | R6: 0
A7: 09-10 Totals

Sheet Big Mailings
A1: MAILINGS
B2: CEG box =18 | C2: Catalogs | D2: HS/MS Credit Brochures | E2: "What's New" Postcard | F2: NCAA Postcard | G2: Free Courses Postcard | H2: "Get More Materials" Postcard | I2: HS Posters | J2: Shipping Costs
A4: TOTALS | B4: =SUM(B5-B6) -> 0 | C4: =SUM(C5-C6) -> 0 | D4: 0 | E4: 0 | F4: 0 | G4: =SUM(G5-G6) -> 0 | H4: =SUM(H5-H6) -> 0 | I4: 0 | J4: =SUM(J5+J6) -> 0
A5: Requested Totals | B5: =SUM(B9:B22) -> 0 | C5: 0 | D5: 0 | E5: 0 | F5: 0 | G5: 0 | H5: 0 | I5: 0 | J5: 0
A6: Returned Totals | B6: =SUM(B24:B32) -> 0 | C6: =SUM(C24:C32) -> 0 | D6: 0 | E6: =SUM(E24:E32) -> 0 | F6: 0 | G6: =SUM(G24:G32) -> 0 | H6: =SUM(H24:H32) -> 0 | I6: 0 | J6: 0
A7: 08-09 Totals
A23: RETURNS

Sheet RS Requests
A1: RS REQUESTS (Monthly Total)
B2: CEG | D2: Regular Catalogs | H2: HS/MS Credit Brochures | I2: CD's | J2: Mailing Costs
A4: TOTALS | B4: =SUM(B5-B6) -> 0 | D4: =SUM(D5-D6) -> 0 | F4: =SUM(F5-F6) -> 0 | H4: =SUM(H5-H6) -> 0 | I4: =SUM(I5-I6) -> 0 | J4: =SUM(J5+J6) -> 0
A5: Requested Total | B5: =SUM(B10+B12+B14+B16+B18+B20+B22+B24+B26+B28+B30+B32+C10+C12+C14+C16+C18+C20+C22+C24+C26+C28+C30+C32) -> 0 | D5: =SUM(G10+G12+G14+G16+G18+G20+G22+G24+G26+G28+G30+G32) -> 0 | E5: =SUM(E10+E12+E14+E16+E18+E20+E22+E24+E26+E28+E30+E32) -> 0 | G5: =SUM(G10+G12+G14+G16+G18+G20+G22+G24+G26+G28+G30+G32) -> 0 | H5: =SUM(H10+H12+H14+H16+H18+H20+H22+H24+H26+H28+H30+H32) -> 0 | I5: =SUM(I10+I12+I14+I16+I18+I20+I22+I24+I26+I28+I30+I32) -> 0 | J5: =SUM(J10+J12+J14+J16+J18+J20+J22+J24+J26+J28+J30+J32) -> 0
A6: Returned Total | B6: =SUM(B34:C41) -> 0 | D6: =SUM(D34:G41) -> 0 | H6: =SUM(H34:H41) -> 0 | I6: =SUM(I34:I41) -> 0 | J6: =SUM(J34:J41) -> 0
A7: 08-09 Totals | B7: =SUM(B9+C9+B11+C11+B13+C13+B15+C15+B17+C17+B19+C19+B21+C21+B23+C23+B25+C25+B27+C27+B29+C29+B31+C31) -> 0 | D7: =SUM(G9+G11+G13+G15+G17+G19+G21+G23+G25+G27+G29+G31) -> 0 | H7: =SUM(K9+K11+K13+K15+K17+K19+K21+K23+K25+K27+K29+K31) -> 0 | I7: =SUM(L9+L11+L13+L15+L17+L19+L21+L23+L25+L27+L29+L31) -> 0 | J7: =SUM(M9+M11+M13+M15+M17+M19+M21+M23+M25+M27+M29+M31) -> 0
B8: Mail | C8: Campus | D8: Mail | E8: Foyer | F8: Campus | G8: Total | H8: Mail | I8: Mail
A9: Aug-09 | G9: =SUM(D9+E9+F9) -> 0
G10: =SUM(D10+E10+F10) -> 0
A11: Sept-09 | G11: =SUM(D11+E11+F11) -> 0
G12: 0
A13: Oct-09 | G13: 0
G14: 0
A15: Nov-09 | G15: 0
G16: 0
A17: Dec-09 | G17: 0
G18: 0
A19: Jan-10 | G19: 0
G20: 0
A21: Feb-10 | G21: 0
G22: 0
A23: Mar-10 | G23: 0
G24: 0
A25: Apr-10 | G25: 0
G26: 0
A27: May-10 | G27: 0
G28: 0
A29: June-10 | G29: 0
G30: 0
A31: July-10 | G31: 0
G32: 0
A33: RETURNS

Sheet Misc Mailings
A1: Misc. Non-Inventory Shipping Costs
A2: TOTAL | E2: =SUM(E5:E48) -> 0
D3: 09-10 Total
A4: Date | B4: Item | C4: Shipped To | D4: Requested By | E4: Cost

Sheet Totals
A1: TOTALS
A2: School Year 2010-2011 | B2: Stress Balls | C2: Pens | D2: CEG box=18 | E2: Catalogs | F2: HS/MS Credit Brochure | G2: Notepads | H2: "What's New" Postcard | I2: NCAA Postcard | J2: Free Courses Postcard | K2: "Get More Materials" Postcard | L2: District Guides | M2: Mice | N2: Umbrellas | O2: Golf Balls | P2: CD | Q2: HS Posters | R2: Shipping Costs
A3: Marketers Visits 09-10 Total | B3: ='Marketer Visits'!B7 -> 0 | C3: ='Marketer Visits'!C7 -> 0 | D3: ='Marketer Visits'!D7 -> 0 | E3: ='Marketer Visits'!E7 -> 0 | F3: ='Marketer Visits'!F7 -> 0 | G3: ='Marketer Visits'!G7 -> 0 | H3: ='Marketer Visits'!H7 -> 0 | I3: ='Marketer Visits'!I7 -> 0 | J3: ='Marketer Visits'!J7 -> 0 | K3: ='Marketer Visits'!K7 -> 0 | L3: ='Marketer Visits'!L7 -> 0 | M3: ='Marketer Visits'!M7 -> 0 | N3: ='Marketer Visits'!N7 -> 0 | O3: ='Marketer Visits'!O7 -> 0 | P3: ='Marketer Visits'!P7 -> 0 | Q3: ='Marketer Visits'!Q7 -> 0 | R3: ='Marketer Visits'!R7 -> 0 | S3: ='Marketer Visits'!R4 -> 3
A4: Marketers Visits Requested | B4: ='Marketer Visits'!B5 -> 90 | C4: ='Marketer Visits'!C5 -> 90 | D4: ='Marketer Visits'!D5 -> 150 | E4: ='Marketer Visits'!E5 -> 0 | F4: ='Marketer Visits'!F5 -> 450 | G4: ='Marketer Visits'!G5 -> 0 | H4: ='Marketer Visits'!H5 -> 60 | I4: ='Marketer Visits'!I5 -> 0 | J4: ='Marketer Visits'!J5 -> 300 | K4: ='Marketer Visits'!K5 -> 0 | L4: ='Marketer Visits'!L5 -> 0 | M4: ='Marketer Visits'!M5 -> 0 | N4: ='Marketer Visits'!N5 -> 0 | O4: ='Marketer Visits'!O5 -> 0 | P4: ='Marketer Visits'!P5 -> 0 | Q4: ='Marketer Visits'!Q5 -> 0
A5: Marketer Visits Returned | B5: ='Marketer Visits'!B6 -> 0 | C5: ='Marketer Visits'!C6 -> 0 | D5: ='Marketer Visits'!D6 -> 0 | E5: ='Marketer Visits'!E6 -> 0 | F5: ='Marketer Visits'!F6 -> 0 | G5: ='Marketer Visits'!G6 -> 0 | H5: ='Marketer Visits'!H6 -> 0 | I5: ='Marketer Visits'!I6 -> 0 | J5: ='Marketer Visits'!J6 -> 0 | K5: ='Marketer Visits'!K6 -> 0 | L5: ='Marketer Visits'!L6 -> 0 | M5: ='Marketer Visits'!M6 -> 0 | N5: ='Marketer Visits'!N6 -> 0 | O5: ='Marketer Visits'!O6 -> 0 | P5: ='Marketer Visits'!P6 -> 0 | Q5: ='Marketer Visits'!Q6 -> 0
A7: Marketer Mailings 09-10 Total | B7: ='Marketer Mailings'!B7 -> 0 | C7: ='Marketer Mailings'!C7 -> 0 | D7: ='Marketer Mailings'!D7 -> 0 | E7: ='Marketer Mailings'!E7 -> 0 | F7: ='Marketer Mailings'!F7 -> 0 | G7: ='Marketer Mailings'!G7 -> 0 | H7: ='Marketer Mailings'!H7 -> 0 | I7: ='Marketer Mailings'!I7 -> 0 | J7: ='Marketer Mailings'!J7 -> 0 | K7: ='Marketer Mailings'!K7 -> 0 | L7: ='Marketer Mailings'!L7 -> 0 | M7: ='Marketer Mailings'!M7 -> 0 | N7: ='Marketer Mailings'!N7 -> 0 | O7: ='Marketer Mailings'!O7 -> 0 | P7: ='Marketer Mailings'!P7 -> 0 | Q7: ='Marketer Mailings'!Q7 -> 0 | R7: ='Marketer Mailings'!R7 -> 0 | S7: ='Marketer Mailings'!R4 -> 9
A8: Marketer Mailings Requested | B8: ='Marketer Mailings'!B5 -> 0 | C8: ='Marketer Mailings'!C5 -> 20 | D8: ='Marketer Mailings'!D5 -> 4 | E8: ='Marketer Mailings'!E5 -> 0 | F8: ='Marketer Mailings'!F5 -> 80 | G8: ='Marketer Mailings'!G5 -> 0 | H8: ='Marketer Mailings'!H5 -> 0 | I8: ='Marketer Mailings'!I5 -> 0 | J8: ='Marketer Mailings'!J5 -> 16 | K8: ='Marketer Mailings'!K5 -> 0 | L8: ='Marketer Mailings'!L5 -> 0 | M8: ='Marketer Mailings'!M5 -> 0 | N8: ='Marketer Mailings'!N5 -> 92 | O8: ='Marketer Mailings'!O5 -> 0 | P8: ='Marketer Mailings'!P5 -> 0 | Q8: ='Marketer Mailings'!Q5 -> 0
A9: Marketer Mailings Returned | B9: ='Marketer Mailings'!B6 -> 0 | C9: ='Marketer Mailings'!C6 -> 0 | D9: ='Marketer Mailings'!D6 -> 0 | E9: ='Marketer Mailings'!E6 -> 0 | F9: ='Marketer Mailings'!F6 -> 0 | G9: ='Marketer Mailings'!G6 -> 0 | H9: ='Marketer Mailings'!H6 -> 0 | I9: ='Marketer Mailings'!I6 -> 0 | J9: ='Marketer Mailings'!J6 -> 0 | K9: ='Marketer Mailings'!K6 -> 0 | L9: ='Marketer Mailings'!L6 -> 0 | M9: ='Marketer Mailings'!M6 -> 0 | N9: ='Marketer Mailings'!N6 -> 0 | O9: ='Marketer Mailings'!O6 -> 0 | P9: ='Marketer Mailings'!P6 -> 0 | Q9: ='Marketer Mailings'!Q6 -> 0
A11: Field Reps 09-10 Total | B11: ='Field Reps'!B7 -> 0 | C11: ='Field Reps'!C7 -> 0 | D11: ='Field Reps'!D7 -> 0 | E11: ='Field Reps'!E7 -> 0 | F11: ='Field Reps'!F7 -> 0 | G11: ='Field Reps'!G7 -> 0 | H11: ='Field Reps'!H7 -> 0 | I11: ='Field Reps'!I7 -> 0 | J11: ='Field Reps'!J7 -> 0 | K11: ='Field Reps'!K7 -> 0 | L11: ='Field Reps'!L7 -> 0 | M11: ='Field Reps'!M7 -> 0 | N11: ='Field Reps'!N7 -> 0 | O11: ='Field Reps'!O7 -> 0 | P11: ='Field Reps'!P7 -> 0 | Q11: ='Field Reps'!Q7 -> 0 | R11: ='Field Reps'!R7 -> 0 | S11: ='Field Reps'!R4 -> 15
A12: Field Reps Requested | B12: ='Field Reps'!B5 -> 1500 | C12: ='Field Reps'!C5 -> 2000 | D12: ='Field Reps'!D5 -> 800 | E12: ='Field Reps'!E5 -> 200 | F12: ='Field Reps'!F5 -> 2000 | G12: ='Field Reps'!G5 -> 1500 | H12: ='Field Reps'!H5 -> 1000 | I12: ='Field Reps'!I5 -> 0 | J12: ='Field Reps'!J5 -> 1000 | K12: ='Field Reps'!K5 -> 0 | L12: ='Field Reps'!L5 -> 0 | M12: ='Field Reps'!M5 -> 300 | N12: ='Field Reps'!N5 -> 10 | O12: ='Field Reps'!O5 -> 30 | P12: ='Field Reps'!P5 -> 150 | Q12: ='Field Reps'!Q5 -> 0
A13: Field Reps Returned | B13: ='Field Reps'!B6 -> 0 | C13: ='Field Reps'!C6 -> 0 | D13: ='Field Reps'!D6 -> 0 | E13: ='Field Reps'!E6 -> 0 | F13: ='Field Reps'!F6 -> 0 | G13: ='Field Reps'!G6 -> 0 | H13: ='Field Reps'!H6 -> 0 | I13: ='Field Reps'!I6 -> 0 | J13: ='Field Reps'!J6 -> 0 | K13: ='Field Reps'!K6 -> 0 | L13: ='Field Reps'!L6 -> 0 | M13: ='Field Reps'!M6 -> 0 | N13: ='Field Reps'!N6 -> 0 | O13: ='Field Reps'!O6 -> 0 | P13: ='Field Reps'!P6 -> 0 | Q13: ='Field Reps'!Q6 -> 0
A15: Conferences 09-10 Total | B15: =Conferences!B7 -> 0 | C15: =Conferences!C7 -> 0 | D15: =Conferences!D7 -> 0 | E15: =Conferences!E7 -> 0 | F15: =Conferences!F7 -> 0 | G15: =Conferences!G7 -> 0 | H15: =Conferences!H7 -> 0 | I15: =Conferences!I7 -> 0 | J15: =Conferences!J7 -> 0 | K15: =Conferences!K7 -> 0 | L15: =Conferences!L7 -> 0 | M15: =Conferences!M7 -> 0 | N15: =Conferences!N7 -> 0 | O15: =Conferences!O7 -> 0 | P15: =Conferences!P7 -> 0 | Q15: =Conferences!Q7 -> 0 | R15: =Conferences!R7 -> 0 | S15: =Conferences!R4 -> 0
A16: Conferences Requested | B16: =Conferences!B5 -> 0 | C16: =Conferences!C5 -> 0 | D16: =Conferences!D5 -> 0 | E16: =Conferences!E5 -> 0 | F16: =Conferences!F5 -> 0 | G16: =Conferences!G5 -> 0 | H16: =Conferences!H5 -> 0 | I16: =Conferences!I5 -> 0 | J16: =Conferences!J5 -> 0 | K16: =Conferences!K5 -> 0 | L16: =Conferences!L5 -> 0 | M16: =Conferences!M5 -> 0 | N16: =Conferences!N5 -> 0 | O16: =Conferences!O5 -> 0 | P16: =Conferences!P5 -> 0 | Q16: =Conferences!Q5 -> 0
A17: Conferences Returned | B17: =Conferences!B6 -> 0 | C17: =Conferences!C6 -> 0 | D17: =Conferences!D6 -> 0 | E17: =Conferences!E6 -> 0 | F17: =Conferences!F6 -> 0 | G17: =Conferences!G6 -> 0 | H17: =Conferences!H6 -> 0 | I17: =Conferences!I6 -> 0 | J17: =Conferences!J6 -> 0 | K17: =Conferences!K6 -> 0 | L17: =Conferences!L6 -> 0 | M17: =Conferences!M6 -> 0 | N17: =Conferences!N6 -> 0 | O17: =Conferences!O6 -> 0 | P17: =Conferences!P6 -> 0 | Q17: =Conferences!Q6 -> 0
A19: Big Mailings 09-10 Total | D19: ='Big Mailings'!B7 -> 0 | E19: ='Big Mailings'!C7 -> 0 | F19: ='Big Mailings'!D7 -> 0 | H19: ='Big Mailings'!F7 -> 0 | I19: ='Big Mailings'!G7 -> 0 | J19: ='Big Mailings'!H7 -> 0 | K19: ='Big Mailings'!I7 -> 0 | Q19: ='Big Mailings'!I7 -> 0 | R19: ='Big Mailings'!J7 -> 0 | S19: ='Big Mailings'!J4 -> 0
A20: Big Mailings Requested | D20: ='Big Mailings'!B5 -> 0 | E20: ='Big Mailings'!C5 -> 0 | F20: ='Big Mailings'!D5 -> 0 | H20: ='Big Mailings'!F5 -> 0 | I20: ='Big Mailings'!G5 -> 0 | J20: ='Big Mailings'!H5 -> 0 | K20: ='Big Mailings'!I5 -> 0 | Q20: ='Big Mailings'!I5 -> 0
A21: Big Mailings Returned | D21: ='Big Mailings'!B6 -> 0 | E21: ='Big Mailings'!C6 -> 0 | F21: ='Big Mailings'!D6 -> 0 | H21: ='Big Mailings'!F6 -> 0 | I21: ='Big Mailings'!G6 -> 0 | J21: ='Big Mailings'!H6 -> 0 | K21: ='Big Mailings'!I6 -> 0 | Q21: ='Big Mailings'!I6 -> 0
A23: RS Requests 09-10 Total | D23: ='RS Requests'!B7 -> 0 | E23: ='RS Requests'!D7 -> 0 | F23: ='RS Requests'!H7 -> 0 | P23: ='RS Requests'!I7 -> 0 | R23: ='RS Requests'!J7 -> 0 | S23: ='RS Requests'!J4 -> 0
A24: RS Requests | D24: ='RS Requests'!B5 -> 0 | E24: ='RS Requests'!D5 -> 0 | F24: ='RS Requests'!H5 -> 0 | P24: ='RS Requests'!I5 -> 0
A25: RS Requests Returned | D25: ='RS Requests'!B6 -> 0 | E25: ='RS Requests'!D6 -> 0 | F25: ='RS Requests'!H6 -> 0 | P25: ='RS Requests'!I6 -> 0
O26: Misc Mailings Total | R26: ='Misc Mailings'!E3 -> 0 | S26: ='Misc Mailings'!E2 -> 0
A27: 09-10 Used Total | B27: =SUM(B3+B7+B11+B15) -> 0 | C27: =SUM(C3+C7+C11+C15) -> 0 | D27: =SUM(D3+D7+D11+D15+D19+D23) -> 0 | E27: =SUM(E3+E7+E11+E15+E19+E23) -> 0 | F27: =SUM(F3+F7+F11+F15+F19+F23) -> 0 | G27: =SUM(G3+G7+G11+G15) -> 0 | H27: =SUM(H3+H7+H11+H15+H19) -> 0 | I27: =SUM(I3+I7+I11+I15+I19) -> 0 | J27: =SUM(J3+J7+J11+J15+J19) -> 0 | K27: =SUM(K3+K7+K11+K15+K19) -> 0 | L27: =SUM(L3+L7+L11+L15) -> 0 | M27: =SUM(M3+M7+M11+M15) -> 0 | N27: =SUM(N3+N7+N11+N15) -> 0 | O27: =SUM(O3+O7+O11+O15) -> 0 | P27: =SUM(P3+P7+P11+P15+P23) -> 0 | Q27: =SUM(Q3+Q7+Q11+Q15+Q19) -> 0
A29: Beginning School Year Inventory
A31: Used To Date Total | B31: =SUM('Marketer Visits'!B4+'Marketer Mailings'!B4+'Field Reps'!B4+Conferences!B4) -> 1590 | C31: =SUM('Marketer Visits'!C4+'Marketer Mailings'!C4+'Field Reps'!C4+Conferences!C4) -> 2110 | D31: =SUM('Marketer Visits'!D4+'Marketer Mailings'!D4+'Field Reps'!D4+Conferences!D4+'Big Mailings'!B4+'RS Requests'!B4) -> 954 | E31: =SUM('Marketer Visits'!E4+'Marketer Mailings'!E4+'Field Reps'!E4+Conferences!E4+'Big Mailings'!C4+'RS Requests'!C4) -> 200 | F31: =SUM('Marketer Visits'!F4+'Marketer Mailings'!F4+'Field Reps'!F4+Conferences!F4+'Big Mailings'!D4+'RS Requests'!D4) -> 2530 | G31: =SUM('Marketer Visits'!G4+'Marketer Mailings'!G4+'Field Reps'!G4+Conferences!G4) -> 1500 | H31: =SUM('Marketer Visits'!H4+'Marketer Mailings'!H4+'Field Reps'!H4+'Big Mailings'!E4) -> 1060 | I31: =SUM('Marketer Visits'!I4+'Marketer Mailings'!I4+'Field Reps'!I4+'Big Mailings'!F4) -> 0 | J31: =SUM('Marketer Visits'!J4+'Marketer Mailings'!J4+'Field Reps'!J4+'Big Mailings'!G4) -> 1316 | K31: =SUM('Marketer Visits'!K4+'Marketer Mailings'!K4+'Field Reps'!K4+'Big Mailings'!H4) -> 0 | L31: =SUM('Marketer Visits'!L4+'Marketer Mailings'!L4+'Field Reps'!L4+Conferences!L4) -> 0 | M31: =SUM('Marketer Visits'!M4+'Marketer Mailings'!M4+'Field Reps'!M4+Conferences!M4) -> 300 | N31: =SUM('Marketer Visits'!N4+'Marketer Mailings'!N4+'Field Reps'!N4+Conferences!N4) -> 102 | O31: =SUM('Marketer Visits'!O4+'Marketer Mailings'!O4+'Field Reps'!O4+Conferences!O4) -> 30 | P31: =SUM('Marketer Visits'!P4+'Marketer Mailings'!P4+'Field Reps'!P4+Conferences!P4+'RS Requests'!I4) -> 150 | Q31: =SUM('Marketer Visits'!Q4+'Marketer Mailings'!Q4+'Field Reps'!Q4+'Big Mailings'!N4) -> 0 | R31: =SUM(S3+S7+S11+S15+S19+S23+S26) -> 27
A33: CALCULATED TOTALS AVAILABLE | B33: =SUM(B29-B31) -> -1590 | C33: =SUM(C29-C31) -> -2110 | D33: -954 | E33: -200 | F33: -2530 | G33: -1500 | H33: -1060 | I33: 0 | J33: -1316 | K33: 0 | L33: 0 | M33: -300 | N33: -102 | O33: -30 | P33: -150 | Q33: 0
A35: INVENTORY TOTALS AVAILABLE 7-1

Sheet Contacts
A1: Marketing Department Employees
A3: Russ Bryant, Assistant Director | C3: Office: 422-6050 | D3: Cell: 319-9558 | E3: russell.bryant@byu.edu
A4: Sharon Meyers, Marketing | C4: Office: 422-8783 | D4: Cell: 228-8483 | E4: sharon.meyers@byu.edu
A5: Shannon Jensen, Advertising | C5: Office: 422-3909 | D5: Cell: 787-6084 | E5: shannon.jensen@byu.edu
A7: Jim Rawson | C7: Office: 422-6292 | D7: Cell: 369-3766 | E7: jim.rawson@byu.edu
A8: Ashley Kenitzer | B8: 925-895-1603 | C8: 1366 Kolln Street | D8: Pleasanton, CA 94566 | E8: ashleykenitzer@yahoo.com
A9: Audrey Martinez | B9: 248-416-2241 | C9: 29601 Citation Circle, Apt 9204 | D9: Farmington Hills, MI 48331 | E9: audreybmartinez@gmail.com
A10: Tracey Long | B10: 702-873-5664 | C10: 5870 W. Oquendo Rd. | D10: Las Vegas, NV 89118 | E10: longforhome@cox.net
A11: Ralph Larson | B11: 801-224-3631 | C11: 1232 S 490 West | D11: Orem, UT 84058 | E11: larson.ralph@gmail.com
A12: Marlene Schuck | B12: 717-682-9649 | C12: 180 Pitney Rd. | D12: Lancaster, PA 17601 | E12: ktsmom2@verizon.net
A13: John Kent | C13: Office: 422-8101 | D13: Cell: 361-4078 | E13: john.kent@byu.edu
A14: Lisa Hanson | B14: 818-880-5573 | C14: 5463 Ruthwood Dr. | D14: Calabasas, CA 91302 | E14: lisachhanson@gmail.com
A15: Jill Petersen | B15: 703-690-7425 | C15: 8956 Sycamore Ridge Road | D15: Fairfax Station, VA 22039 | E15: sjkpetersen@verizon.net
A16: Robin Fluegel | B16: 815-914-3158 | C16: 315 Ridgestone Trail | D16: Poplar Grove, IL 61065 | E16: robin.fluegel@gmail.com
A17: Jedd Maylett | C17: Office: 422-2065 | D17: Cell: 885-2734 | E17: jedd.maylett@byu.edu
A18: Amy Stancliff | B18: 541-923-2832 | C18: 1303 NW 18th Street | D18: Redmond, OR 97756 | E18: amy_stancliff@yahoo.com
A19: Jeanne Grant | B19: 214-717-2262 | C19: 6933 Windy Ridge | D19: Dallas, TX 75248 | E19: jzgrant@sbcglobal.net
A20: Cynthia Johnson | B20: 612-719-9060 | C20: 3833 45th Avenue South | D20: Minneapolis, MN 55406 | E20: cynthiaj@usiwireless.com
A21: Alexis Rich | B21: 860-779-1314 | C21: 97 Laurel Road | D21: Dayville, CT 06241 | E21: alexisrich@yahoo.com
A22: Kelly Henderson | B22: 801-830-2152 | C22: 9258 Magnolia Way | D22: Windsor, CA 95492 | E22: kellyandkids2006@yahoo.com
A23: John Bushman | C23: Office: 422-3985 | D23: Cell: 361-4911 | E23: john.bushman@byu.edu
A24: Anne Dalton | B24: 207-244-0354 | C24: 7 Rocky Road | D24: Mt. Desert, ME 04660 | E24: daltons@myfairpoint.net
A25: Candace Collins | B25: 210-563-8970 | C25: 1226 Earlston Drive | D25: San Antonio, TX 78253 | E25: ce.collins@yahoo.com
A26: Kelley Crosby | B26: 949-355-6028 | C26: 1035 W. Balboa Blvd. | D26: Newport Beach, CA 92661 | E26: kelley.crosby@gmail.com
A27: Eric Stones | B27: 509-762-2211 | C27: 9486 Stonecrest Road NE | D27: Moses Lake, WA 98837 | E27: stonese@ldsces.org
A28: Jessica Brown | B28: 919-946-8740 | C28: 2420 Sapphire Valley Drive | D28: Raleigh, NC 27604 | E28: jess_ty@bellsouth.net
A29: Sara Collett | B29: 801-380-5119 | C29: 16554 NE 99th Street | D29: Redmond, WA 98052 | E29: sara.collett@hotmail.com
A30: Richard Elms | B30: 734-255-8250 | C30: 9545 Wood Bend Drive | D30: Saline, MI 48176 | E30: elmsr@ldschurch.org
A31: Nathan Hallows | C31: Office: 422-8007 | D31: Cell: 380-0191 | E31: nathan.hallows@byu.edu
A32: Amy Orocu | B32: 303-596-8347 | C32: 1544 Goshawk Drive | D32: Longmont, CO 80501 | E32: amy_orocu@yahoo.com
A33: Tom Hunsaker | B33: 719-224-2586 | C33: 6668 Bigleaf Lane | D33: Colorado Springs, CO 80927 | E33: tkhunsaker@gmail.com
A34: Denise Stanley | B34: 661-993-2199 | C34: 29075 Discovery Ridge Dr. | D34: Santa Clarita, CA 91390 | E34: ddstanley7@gmail.com
A35: Doug Stern | B35: 262-349-0529 | C35: N24 W22722 Meadowood Ln | D35: Waukesha, WI 53186 | E35: byu.doug@gmail.com
D37: Office/Cell
A38: Shipping Specialist | C38: Clay Drown | D38: 422-5668 / 801-358-9483 | E38: clay.drown@byu.edu
A39: Advertising Assistant | C39: Garrett Jackson | D39: 422-8543 / 360-219-7600 | E39: garrett.jackson@byu.edu
A40: Conference Assistant | C40: Pragya Adhikari | D40: 422-4787 / 408-455-0060 | E40: isconferences@byu.edu
A41: Marketing Coordinator Asst | C41: Ryan Galati | D41: / 859-401-2404 | E41: ryan.galati@byu.edu
A42: John Kent's Assistant | C42: Anders Conk | D42: 422-8540 / 760-822-7625 | E42: anders.conk@byu.edu
A43: Jim Rawson's Assistant | C43: Jenn Watson | D43: 422-8542 / 801-615-3845 | E43: jennifer.watson@byu.edu
A44: Jedd Maylett's Assistant | C44: Angela Rowberry | D44: 422-1577 / 801-913-0704 | E44: angela.rowberry@byu.edu
A45: Nathan Hallows' Assistant | C45: Nicole Baer | D45: 422-1813 / 801-671-8937 | E45: nicole.baer@byu.edu
A46: John Bushman's Assistant | C46: Kelli Jo Black | D46: 422-1577 / 801-885-3914 | E46: kelli.black@byu.edu
A48: Marketing Fax Number | C48: 801-812-8885
A50: Updated 11-17-10 | B50: N:\Databases\Marketing databases\General Information\Marketing Department

Sheet Sheet1
A1: Timestamp | B1: Your Name | C1: Address | D1: How many Stress Balls? | E1: Pens | F1: CEGs | G1: Catalogs | H1: HS/MS Credit Brochures | I1: Notepads | J1: "What's New" Postcards | K1: "Free Courses" Postcard | L1: Mice With Batteries | M1: Golf Balls | N1: Umbrellas | O1: CDs | P1: Misc. | Q1: When does it need to arrive? | R1: Shipped | S1: Shipping Number(s) | T1: Inventory Type
A2: 2011-03-10T11:10:06 | B2: Jim Rawson | C2: Courtyard San Jose Campbell 655 Creekside Way · Campbell, CA 95008 USA | D2: 150 | E2: 200 | F2: 80 | G2: 20 | H2: 200 | I2: 150 | J2: 100 | K2: 100 | L2: 30 | M2: 1 | N2: 3 | O2: 15 | Q2: 2011-03-25 | R2: No | S2: 972139874HIICIX0987, | T2: Field Reps
A3: 2011-04-04T14:00:27 | B3: Sharon | C3: Eric Stones (please email him the tracking number) | F3: 25 | Q3: 2011-04-08 | R3: Yes | S3: 98asd8798a7, 0987asd798sdf
A4: 2011-04-04T12:00:18 | B4: Doug Stern (Chase) | C4: ATTN: Valerie Schmitz KM Global Charter School 349 N Oak Crest Dr. Wales, WI 53183 | F4: 3 | P4: 1 Doug Poster 30 Doug Fliers | Q4: asap | R4: Yes | S4: 972139874HIICIX0987,
A5: 2011-04-04T10:46:14 | B5: Angela Rowberry | C5: Counseling Department Marblehead High School 2 Humphrey St Marblehead, MA 01945 | H5: 20 | Q5: 2011-04-11 | R5: Yes | S5: 972139874HIICIX0987,
A6: 2011-04-04T10:45:01 | B6: John Bushman | C6: Lorri Kimball Academy of Notre Dame High School 180 MIDDLESEX RD TYNGSBORO, MA 01879 | E6: 5 | F6: 1 | H6: 20 | K6: 4 | M6: 23 | Q6: 2011-04-11 | R6: No | T6: Mailings
A7: 2011-04-04T10:43:11 | B7: Angela Rowberry | C7: Cynthia Esielionis Ayer Jr/Sr High School 141 Washington St Ayer, MA 01432 | D7: 4 | F7: 2 | H7: 20 | Q7: 2011-04-11 | R7: Yes | S7: 98asd8798a7, 0987asd798sdf
A8: 2011-04-04T10:42:05 | B8: Angela Rowberry | C8: Geoff Kromer 1540 Lakeview Ave Dracut, MA 01826 | H8: 40 | P8: 4 ERG | Q8: 2011-04-11 | R8: Yes | S8: 972139874HIICIX0987,
A9: 2011-04-04T08:55:52 | B9: John Kent | C9: Guest: John Kent Melville Marriott Long Island 1350 Old Walt Whitman Road Melville, New York 11747 Telephone: 631-423-1600 | D9: 30 | E9: 30 | F9: 50 | H9: 150 | J9: 20 | K9: 100 | Q9: 2011-04-11 | R9: No | T9: Visits
